[Event "St. Petersburg-ch 2021"]
[Site "St. Petersburg"]
[Date "2021.03.31"]
[Round "7.4"]
[White "Golikov, Daniil"]
[Black "Saveliev, Alexei"]
[Result "1/2-1/2"]
[ECO "E46"]
[WhiteElo "2229"]
[BlackElo "2358"]
[Annotator "NA"]
[PlyCount "69"]
[EventDate "2021.03.25"]
[EventType "swiss"]
[EventCountry "RUS"]
[SourceTitle "playchess.com"]
[Source "ChessBase"]
[SourceQuality "1"]
[TimeControl "40/5400+30:1800+30"]

1. d4 {[%emt 0:00:00]} Nf6 {[%emt 0:02:15]} 2. c4 {[%emt 0:00:00]} e6 {[%emt 0:00:02]} 3. Nc3 {[%emt 0:00:00]} Bb4 {[%emt 0:00:05]} 4. e3 {[%emt 0:00:00]} O-O {[%emt 0:01:16]} 5. Nge2 {[%emt 0:00:00]} d5 {[%emt 0:00:05]} 6. a3 {[%emt 0:00:00]} Be7 {[%emt 0:02:14]} 7. cxd5 {[%emt 0:00:01]} exd5 {[%emt 0:00:03]} 8. Nf4 {[%emt 0:00:04]} Re8 {[%emt 0:03:11]} 9. Bd3 {[%emt 0:01:19]} c6 {[%emt 0:06:30]} 10. O-O {[%emt 0:00:23]} Nbd7 {[%emt 0:00:16]} 11. f3 {[%emt 0:01:49]} Nf8 {[%emt 0:02:39]} 12. Bc2 {[%emt 0:01:04]} Ne6 {[%emt 0:04:39]} 13. Nxe6 {[%emt 0:00:15]} Bxe6 {[%emt 0:00:01]} 14. e4 {[%emt 0:00:33]} c5 {[%emt 0:01:08]} 15. Ba4 {[%emt 0:09:29]} cxd4 {[%emt 0:13:08]} 16. Nxd5 {[%emt 0:00:19]} Bxd5 {[%emt 0:00:44]} 17. exd5 {[%emt 0:24:15]} Rf8 {[%emt 0:03:04]} 18. Qxd4 {[%emt 0:00:40]} Qxd5 {[%emt 0:00:04]} 19. Qxd5 {[%emt 0:03:27]} Nxd5 {[%emt 0:00:02]} 20. Rd1 {[%emt 0:00:24]} Rfd8 {[%emt 0:02:53]} 21. Bb3 {[%emt 0:00:31]} Bc5+ {[%emt 0:00:04]} 22. Kf1 {[%emt 0:00:07]} Ne3+ {[%emt 0:00:08]} 23. Bxe3 {[%emt 0:00:04]} Bxe3 {[%emt 0:00:02]} 24. Rxd8+ {[%emt 0:00:06]} Rxd8 {[%emt 0:00:02]} 25. Re1 {[%emt 0:01:23]} Bc5 {[%emt 0:00:07]} 26. Rd1 {[%emt 0:00:09]} Rxd1+ {[%emt 0:00:05]} 27. Bxd1 {[%emt 0:00:04]} a5 {[%emt 0:00:04]} 28. a4 {[%emt 0:00:03]} b6 {[%emt 0:00:04]} 29. b3 {[%emt 0:00:02]} Bb4 {[%emt 0:00:04]} 30. Be2 {[%emt 0:00:04]} Bc5 {[%emt 0:00:02]} 31. Bd1 {[%emt 0:00:04]} Bb4 {[%emt 0:00:01]} 32. Be2 {[%emt 0:00:05]} Bc5 {[%emt 0:00:02]} 33. Bd1 {[%emt 0:00:03]} Bb4 {[%emt 0:00:02]} 34. Be2 {[%emt 0:00:04]} Bc5 {[%emt 0:00:05]} 35. Bd1 {[%emt 1:00:39]} 1/2-1/2

[Event "St. Petersburg-ch 2021"]
[Site "St. Petersburg"]
[Date "2021.03.31"]
[Round "7.5"]
[White "Palchun, Grigory"]
[Black "Askerov, Marat"]
[Result "0-1"]
[ECO "E14"]
[WhiteElo "2359"]
[BlackElo "2351"]
[Annotator "NA"]
[PlyCount "64"]
[EventDate "2021.03.25"]
[EventType "swiss"]
[EventCountry "RUS"]
[SourceTitle "playchess.com"]
[Source "ChessBase"]
[SourceQuality "1"]
[TimeControl "40/5400+30:1800+30"]

1. Nf3 {[%emt 0:00:00]} Nf6 {[%emt 0:00:00]} 2. e3 {[%emt 0:00:20]} e6 {[%emt 0:01:03]} 3. b3 {[%emt 0:00:14]} b6 {[%emt 0:01:28]} 4. Bb2 {[%emt 0:00:10]} Bb7 {[%emt 0:00:06]} 5. d4 {[%emt 0:00:25]} c5 {[%emt 0:00:33]} 6. Bd3 {[%emt 0:07:18]} Be7 {[%emt 0:04:02]} 7. O-O {[%emt 0:00:18]} O-O {[%emt 0:00:04]} 8. c4 {[%emt 0:02:32]} cxd4 {[%emt 0:06:15]} 9. exd4 {[%emt 0:00:40]} d5 {[%emt 0:00:16]} 10. Nc3 {[%emt 0:01:41]} Nc6 {[%emt 0:04:25]} 11. Rc1 {[%emt 0:02:57]} Rc8 {[%emt 0:00:48]} 12. Qe2 {[%emt 0:12:58]} Nb4 {[%emt 0:14:46]} 13. Bb1 {[%emt 0:32:08]} dxc4 {[%emt 0:00:40]} 14. bxc4 {[%emt 0:00:07]} Bxf3 {[%emt 0:01:06]} 15. gxf3 {[%emt 0:00:02]} Bd6 {[%emt 0:16:20]} 16. Kh1 {[%emt 0:07:59]} Bf4 {[%emt 0:05:16]} 17. Rcd1 {[%emt 0:00:49]} Nh5 {[%emt 0:07:43]} 18. Qe4 {[%emt 0:09:10]} f5 {[%emt 0:08:46]} 19. Qxe6+ {[%emt 0:00:03]} Kh8 {[%emt 0:00:04]} 20. Bxf5 {[%emt 0:16:49]} Rc6 {[%emt 0:05:19]} 21. Qe4 {[%emt 0:00:03]} Re8 {[%emt 0:02:19]} 22. Qb1 {[%emt 0:00:18]} Qh4 {[%emt 0:08:22]} 23. h3 {[%emt 0:00:12]} Ng3+ {[%emt 0:00:52]} 24. Kg2 {[%emt 0:01:50]} Rf8 {[%emt 0:05:18]} 25. Rfe1 {[%emt 0:00:42]} Rcf6 {[%emt 0:03:28]} 26. Be6 {[%emt 0:01:58]} Bd6 {[%emt 0:02:08]} 27. Ne4 {[%emt 0:00:30]} Rxf3 {[%emt 0:00:38]} 28. Nxd6 {[%emt 0:01:01]} Rxf2+ {[%emt 0:00:09]} 29. Kg1 {[%emt 0:00:16]} Ne2+ {[%emt 0:00:15]} 30. Kh1 {[%emt 0:00:06]} Rh2+ {[%emt 0:00:15]} 31. Kxh2 {[%emt 0:00:05]} Qf2+ {[%emt 0:00:03]} 32. Kh1 {[%emt 0:00:04]} Ng3# {[%emt 0:00:04]} 0-1

[Event "St. Petersburg-ch 2021"]
[Site "St. Petersburg"]
[Date "2021.04.02"]
[Round "9.1"]
[White "Goganov, Aleksey"]
[Black "Saveliev, Alexei"]
[Result "1/2-1/2"]
[ECO "E17"]
[WhiteElo "2575"]
[BlackElo "2358"]
[Annotator "RC"]
[PlyCount "63"]
[EventDate "2021.03.25"]
[EventType "swiss"]
[EventCountry "RUS"]
[SourceTitle "playchess.com"]
[Source "ChessBase"]
[SourceQuality "1"]
[TimeControl "40/5400+30:1800+30"]

1. d4 {[%emt 0:00:00]} Nf6 {[%emt 0:01:10]} 2. c4 {[%emt 0:01:43]} e6 {[%emt 0:00:07]} 3. Nf3 {[%emt 0:00:04]} b6 {[%emt 0:00:17]} 4. g3 {[%emt 0:00:05]} Bb7 {[%emt 0:00:07]} 5. Bg2 {[%emt 0:00:06]} Be7 {[%emt 0:00:07]} 6. O-O {[%emt 0:00:06]} O-O {[%emt 0:00:04]} 7. h4 {[%emt 0:00:29]} Qc8 {[%emt 0:05:52]} 8. Nc3 {[%emt 0:14:49]} Ne4 {[%emt 0:02:14]} 9. Nxe4 {[%emt 0:01:34]} Bxe4 {[%emt 0:00:05]} 10. Ne1 {[%emt 0:04:54]} Bxg2 {[%emt 0:02:56]} 11. Nxg2 {[%emt 0:00:05]} d5 {[%emt 0:03:11]} 12. cxd5 {[%emt 0:05:44]} exd5 {[%emt 0:00:24]} 13. Bg5 {[%emt 0:15:03]} Bxg5 {[%emt 0:14:07]} 14. hxg5 {[%emt 0:00:05]} Nc6 {[%emt 0:00:07]} 15. Rc1 {[%emt 0:06:53]} Ne7 {[%emt 0:00:26]} 16. Nf4 {[%emt 0:05:59]} c6 {[%emt 0:08:27]} 17. e3 {[%emt 0:03:23]} f6 {[%emt 0:11:23]} 18. gxf6 {[%emt 0:00:28]} Rxf6 {[%emt 0:00:03]} 19. Kg2 {[%emt 0:00:39]} Qd7 {[%emt 0:00:45]} 20. Nd3 {[%emt 0:10:50]} Rh6 {[%emt 0:11:30]} 21. Rh1 {[%emt 0:00:29]} Rxh1 {[%emt 0:00:05]} 22. Qxh1 {[%emt 0:01:38]} Qf5 {[%emt 0:00:21]} 23. Ne5 {[%emt 0:03:55]} Rf8 {[%emt 0:03:13]} 24. f4 {[%emt 0:05:16]} c5 {[%emt 0:05:25]} 25. dxc5 {[%emt 0:00:05]} bxc5 {[%emt 0:01:19]} 26. Rxc5 {[%emt 0:00:09]} Qe4+ {[%emt 0:02:14]} 27. Kh2 {[%emt 0:00:06]} Qxe3 {[%emt 0:00:03]} 28. Rc7 {[%emt 0:05:38]} Rf6 {[%emt 0:11:57]} 29. Rc8+ {[%emt 0:00:18]} Rf8 {[%emt 0:00:19]} 30. Rc7 {[%emt 0:00:04]} Rf6 {[%emt 0:00:02]} 31. Rc8+ {[%emt 0:06:42]} Rf8 {[%emt 0:00:05]} 32. Rc7 {[%emt 0:08:41]} 1/2-1/2

[Event "St. Petersburg-ch 2021"]
[Site "St. Petersburg"]
[Date "2021.04.02"]
[Round "9.3"]
[White "Timerkhanov, Alexander"]
[Black "Shubin, Kirill"]
[Result "1/2-1/2"]
[ECO "A20"]
[WhiteElo "2400"]
[BlackElo "2466"]
[Annotator "ChessBase"]
[PlyCount "80"]
[EventDate "2021.03.25"]
[EventType "swiss"]
[EventCountry "RUS"]
[SourceTitle "playchess.com"]
[Source "ChessBase"]
[SourceQuality "1"]
[TimeControl "40/5400+30:1800+30"]

1. c4 {[%emt 0:00:00]} e5 {[%emt 0:00:00]} 2. a3 {[%emt 0:00:00]} a5 {[%emt 0:00:00]} 3. e3 {[%emt 0:00:39]} Nc6 {[%emt 0:01:15]} 4. Nc3 {[%emt 0:00:14]} g6 {[%emt 0:00:31]} 5. g3 {[%emt 0:01:28]} Bg7 {[%emt 0:00:07]} 6. Bg2 {[%emt 0:00:06]} Nge7 {[%emt 0:01:12]} 7. Nge2 {[%emt 0:00:11]} d6 {[%emt 0:00:06]} 8. Rb1 {[%emt 0:01:00]} Be6 {[%emt 0:05:35]} 9. Nd5 {[%emt 0:00:16]} Qd7 {[%emt 0:00:33]} 10. O-O {[%emt 0:02:57]} O-O {[%emt 0:01:43]} 11. b4 {[%emt 0:04:50]} axb4 {[%emt 0:00:24]} 12. axb4 {[%emt 0:00:07]} Bf5 {[%emt 0:02:55]} 13. e4 {[%emt 0:11:00]} Be6 {[%emt 0:04:55]} 14. d3 {[%emt 0:01:51]} Nd4 {[%emt 0:03:52]} 15. Nxd4 {[%emt 0:01:26]} exd4 {[%emt 0:00:03]} 16. Nf4 {[%emt 0:02:59]} b5 {[%emt 0:09:08]} 17. Nxe6 {[%emt 0:00:56]} fxe6 {[%emt 0:02:35]} 18. cxb5 {[%emt 0:04:02]} e5 {[%emt 0:00:32]} 19. Qb3+ {[%emt 0:00:31]} Kh8 {[%emt 0:00:04]} 20. Bg5 {[%emt 0:01:08]} h6 {[%emt 0:00:27]} 21. Bxe7 {[%emt 0:01:01]} Qxe7 {[%emt 0:00:04]} 22. Rfc1 {[%emt 0:02:45]} h5 {[%emt 0:00:18]} 23. Rc6 {[%emt 0:01:29]} Bh6 {[%emt 0:00:09]} 24. Qc2 {[%emt 0:03:55]} Rf7 {[%emt 0:00:15]} 25. b6 {[%emt 0:07:10]} cxb6 {[%emt 0:00:20]} 26. Rc8+ {[%emt 0:00:05]} Rxc8 {[%emt 0:00:04]} 27. Qxc8+ {[%emt 0:00:04]} Qf8 {[%emt 0:01:15]} 28. Qxf8+ {[%emt 0:00:04]} Rxf8 {[%emt 0:00:06]} 29. Ra1 {[%emt 0:00:43]} Bd2 {[%emt 0:00:09]} 30. Ra6 {[%emt 0:01:44]} Bxb4 {[%emt 0:00:06]} 31. Rxb6 {[%emt 0:00:04]} Bc5 {[%emt 0:00:02]} 32. Rc6 {[%emt 0:00:59]} Kg7 {[%emt 0:00:35]} 33. Bh3 {[%emt 0:00:19]} Kf6 {[%emt 0:00:22]} 34. Rc8 {[%emt 0:00:58]} Rxc8 {[%emt 0:00:03]} 35. Bxc8 {[%emt 0:00:03]} Bb4 {[%emt 0:00:03]} 36. Ba6 {[%emt 0:00:05]} Bc5 {[%emt 0:00:03]} 37. Bc4 {[%emt 0:00:05]} Bb4 {[%emt 0:00:03]} 38. Kg2 {[%emt 0:00:05]} Bc5 {[%emt 0:00:04]} 39. h3 {[%emt 0:00:04]} Bb4 {[%emt 0:00:03]} 40. f3 {[%emt 0:00:00]} Bc5 {[%emt 0:00:00]} 1/2-1/2

[Event "St. Petersburg-ch 2021"]
[Site "St. Petersburg"]
[Date "2021.04.02"]
[Round "9.4"]
[White "Usmanov, Vasily"]
[Black "Askerov, Marat"]
[Result "0-1"]
[ECO "E36"]
[WhiteElo "2447"]
[BlackElo "2353"]
[Annotator "ChessBase"]
[PlyCount "96"]
[EventDate "2021.03.25"]
[EventType "swiss"]
[EventCountry "RUS"]
[SourceTitle "playchess.com"]
[Source "ChessBase"]
[SourceQuality "1"]
[TimeControl "40/5400+30:1800+30"]

1. d4 {[%emt 0:03:43]} e6 {[%emt 0:00:00]} 2. c4 {[%emt 0:00:11]} Nf6 {[%emt 0:00:00]} 3. Nc3 {[%emt 0:00:03]} Bb4 {[%emt 0:00:00]} 4. Qc2 {[%emt 0:00:05]} O-O {[%emt 0:09:44]} 5. a3 {[%emt 0:00:27]} Bxc3+ {[%emt 0:00:22]} 6. Qxc3 {[%emt 0:00:02]} d5 {[%emt 0:00:12]} 7. Nf3 {[%emt 0:00:23]} dxc4 {[%emt 0:03:07]} 8. Qxc4 {[%emt 0:00:19]} b6 {[%emt 0:00:06]} 9. h4 {[%emt 0:00:05]} Ba6 {[%emt 0:01:18]} 10. Qc2 {[%emt 0:00:05]} Nbd7 {[%emt 0:02:13]} 11. h5 {[%emt 0:02:10]} h6 {[%emt 0:02:43]} 12. Rh4 {[%emt 0:01:38]} c5 {[%emt 0:02:51]} 13. g4 {[%emt 0:25:48]} Nh7 {[%emt 0:08:13]} 14. dxc5 {[%emt 0:24:40]} Rc8 {[%emt 0:09:07]} 15. c6 {[%emt 0:00:10]} Bb7 {[%emt 0:04:02]} 16. g5 {[%emt 0:00:05]} Bxc6 {[%emt 0:04:38]} 17. Qc3 {[%emt 0:14:14]} Bxf3 {[%emt 0:11:35]} 18. Qxf3 {[%emt 0:00:03]} Nxg5 {[%emt 0:00:13]} 19. Qg3 {[%emt 0:00:14]} Nc5 {[%emt 0:07:38]} 20. Bg2 {[%emt 0:00:28]} e5 {[%emt 0:02:30]} 21. Bd2 {[%emt 0:01:01]} f5 {[%emt 0:02:59]} 22. Rd1 {[%emt 0:01:43]} f4 {[%emt 0:01:13]} 23. Qg4 {[%emt 0:00:05]} Qe7 {[%emt 0:02:35]} 24. Bd5+ {[%emt 0:01:07]} Kh8 {[%emt 0:00:10]} 25. f3 {[%emt 0:01:06]} Rcd8 {[%emt 0:03:58]} 26. Bc3 {[%emt 0:01:14]} a5 {[%emt 0:00:38]} 27. b3 {[%emt 0:05:06]} Rd6 {[%emt 0:08:35]} 28. Bc4 {[%emt 0:00:02]} Rxd1+ {[%emt 0:00:13]} 29. Kxd1 {[%emt 0:00:01]} b5 {[%emt 0:00:33]} 30. Bxb5 {[%emt 0:00:18]} Nxb3 {[%emt 0:00:06]} 31. Bd3 {[%emt 0:02:02]} Qxa3 {[%emt 0:00:41]} 32. Kc2 {[%emt 0:02:23]} Nd4+ {[%emt 0:03:21]} 33. Kd2 {[%emt 0:00:30]} Nb3+ {[%emt 0:01:12]} 34. Kc2 {[%emt 0:00:19]} Rb8 {[%emt 0:01:21]} 35. Rh1 {[%emt 0:00:05]} Qa2+ {[%emt 0:02:59]} 36. Kd1 {[%emt 0:00:13]} Nd4 {[%emt 0:00:45]} 37. Bxd4 {[%emt 0:01:38]} Qa4+ {[%emt 0:03:58]} 38. Kd2 {[%emt 0:00:05]} Qxd4 {[%emt 0:00:50]} 39. Rc1 {[%emt 0:00:04]} Rd8 {[%emt 0:00:41]} 40. Ke1 {[%emt 0:00:00]} e4 {[%emt 0:00:00]} 41. fxe4 {[%emt 0:06:08]} Nxe4 {[%emt 0:07:33]} 42. Bxe4 {[%emt 0:00:57]} Qd2+ {[%emt 0:02:00]} 43. Kf2 {[%emt 0:00:04]} Qxc1 {[%emt 0:00:32]} 44. Bd3 {[%emt 0:05:23]} Qe3+ {[%emt 0:01:35]} 45. Kf1 {[%emt 0:00:01]} f3 {[%emt 0:00:46]} 46. Qf5 {[%emt 0:00:06]} fxe2+ {[%emt 0:00:17]} 47. Ke1 {[%emt 0:00:03]} Qxd3 {[%emt 0:01:31]} 48. Qf8+ {[%emt 0:00:06]} Kh7 {[%emt 0:00:03]} 0-1

[Event "St. Petersburg-ch 2021"]
[Site "St. Petersburg"]
[Date "2021.04.02"]
[Round "9.5"]
[White "Lobanov, Sergei"]
[Black "Levin, Evgeny A."]
[Result "1/2-1/2"]
[ECO "C24"]
[WhiteElo "2520"]
[BlackElo "2502"]
[Annotator "ChessBase"]
[PlyCount "52"]
[EventDate "2021.03.25"]
[EventType "swiss"]
[EventCountry "RUS"]
[SourceTitle "playchess.com"]
[Source "ChessBase"]
[SourceQuality "1"]
[TimeControl "40/5400+30:1800+30"]

1. e4 {[%emt 0:00:00]} e5 {[%emt 0:04:43]} 2. Bc4 {[%emt 0:00:02]} Nf6 {[%emt 0:00:30]} 3. d3 {[%emt 0:00:18]} c6 {[%emt 0:04:40]} 4. Nf3 {[%emt 0:00:04]} Be7 {[%emt 0:03:03]} 5. O-O {[%emt 0:02:34]} d6 {[%emt 0:00:07]} 6. Re1 {[%emt 0:01:13]} O-O {[%emt 0:00:06]} 7. Nbd2 {[%emt 0:00:22]} Nbd7 {[%emt 0:06:29]} 8. a3 {[%emt 0:03:15]} Qc7 {[%emt 0:15:45]} 9. Ba2 {[%emt 0:06:02]} Nc5 {[%emt 0:09:45]} 10. Nf1 {[%emt 0:05:09]} Be6 {[%emt 0:01:53]} 11. Ng3 {[%emt 0:02:11]} Bxa2 {[%emt 0:00:59]} 12. Rxa2 {[%emt 0:00:01]} Rfe8 {[%emt 0:01:15]} 13. c3 {[%emt 0:07:19]} Bf8 {[%emt 0:01:59]} 14. Bg5 {[%emt 0:04:30]} Ncd7 {[%emt 0:00:55]} 15. d4 {[%emt 0:08:22]} h6 {[%emt 0:00:29]} 16. Bxf6 {[%emt 0:00:33]} Nxf6 {[%emt 0:00:05]} 17. Ra1 {[%emt 0:00:11]} Rad8 {[%emt 0:01:23]} 18. Qc2 {[%emt 0:01:01]} g6 {[%emt 0:00:56]} 19. Rad1 {[%emt 0:06:09]} h5 {[%emt 0:02:47]} 20. Qc1 {[%emt 0:10:59]} Ng4 {[%emt 0:01:11]} 21. Rd3 {[%emt 0:00:15]} Bh6 {[%emt 0:00:58]} 22. Qd1 {[%emt 0:00:17]} Bf4 {[%emt 0:04:18]} 23. Ne2 {[%emt 0:02:02]} Bh6 {[%emt 0:00:23]} 24. Ng3 {[%emt 0:00:09]} Bf4 {[%emt 0:00:04]} 25. Ne2 {[%emt 0:09:53]} Bh6 {[%emt 0:00:07]} 26. Ng3 {[%emt 0:10:20]} Bf4 {[%emt 0:00:10]} 1/2-1/2

[Event "St. Petersburg-ch 2021"]
[Site "St. Petersburg"]
[Date "2021.04.02"]
[Round "9.6"]
[White "Vlasenko, Miroslav"]
[Black "Palchun, Grigory"]
[Result "1/2-1/2"]
[ECO "C32"]
[WhiteElo "2433"]
[BlackElo "2348"]
[Annotator "ChessBase"]
[PlyCount "110"]
[EventDate "2021.03.25"]
[EventType "swiss"]
[EventCountry "RUS"]
[SourceTitle "playchess.com"]
[Source "ChessBase"]
[SourceQuality "1"]
[TimeControl "40/5400+30:1800+30"]

1. e4 {[%emt 0:00:39]} e5 {[%emt 0:02:58]} 2. Nc3 {[%emt 0:00:09]} Nf6 {[%emt 0:00:21]} 3. Bc4 {[%emt 0:00:08]} Bc5 {[%emt 0:10:33]} 4. f4 {[%emt 0:00:53]} d5 {[%emt 0:14:02]} 5. exd5 {[%emt 0:00:17]} e4 {[%emt 0:00:54]} 6. d4 {[%emt 0:00:07]} exd3 {[%emt 0:00:33]} 7. Qxd3 {[%emt 0:00:20]} O-O {[%emt 0:00:11]} 8. Nge2 {[%emt 0:00:56]} Ng4 {[%emt 0:13:51]} 9. Rf1 {[%emt 0:12:20]} Re8 {[%emt 0:04:05]} 10. Bd2 {[%emt 0:07:15]} Ne3 {[%emt 0:17:55]} 11. Bxe3 {[%emt 0:00:37]} Rxe3 {[%emt 0:00:04]} 12. Qd2 {[%emt 0:00:36]} Re8 {[%emt 0:00:19]} 13. d6 {[%emt 0:06:02]} c6 {[%emt 0:10:02]} 14. Qd3 {[%emt 0:12:17]} b5 {[%emt 0:04:54]} 15. Bb3 {[%emt 0:02:29]} Na6 {[%emt 0:06:13]} 16. Qf3 {[%emt 0:16:32]} Qxd6 {[%emt 0:00:42]} 17. Ne4 {[%emt 0:03:59]} Qe7 {[%emt 0:04:05]} 18. Nxc5 {[%emt 0:02:45]} Nxc5 {[%emt 0:00:11]} 19. O-O-O {[%emt 0:01:10]} Nxb3+ {[%emt 0:01:28]} 20. axb3 {[%emt 0:00:25]} Bb7 {[%emt 0:01:06]} 21. Ng3 {[%emt 0:06:24]} c5 {[%emt 0:00:09]} 22. Qg4 {[%emt 0:00:21]} Rad8 {[%emt 0:01:00]} 23. f5 {[%emt 0:01:49]} Qe3+ {[%emt 0:02:38]} 24. Kb1 {[%emt 0:00:11]} Rd4 {[%emt 0:00:26]} 25. Rxd4 {[%emt 0:03:08]} Qxd4 {[%emt 0:00:02]} 26. Qxd4 {[%emt 0:00:34]} cxd4 {[%emt 0:00:01]} 27. Rd1 {[%emt 0:00:44]} Bxg2 {[%emt 0:00:27]} 28. Rxd4 {[%emt 0:01:21]} g6 {[%emt 0:00:25]} 29. Rd7 {[%emt 0:02:51]} a5 {[%emt 0:01:15]} 30. Kc1 {[%emt 0:01:32]} Kg7 {[%emt 0:00:25]} 31. Rd6 {[%emt 0:01:05]} h5 {[%emt 0:00:54]} 32. fxg6 {[%emt 0:02:11]} fxg6 {[%emt 0:00:03]} 33. Kd2 {[%emt 0:00:19]} Re5 {[%emt 0:01:21]} 34. c4 {[%emt 0:00:25]} Rc5 {[%emt 0:01:20]} 35. Rd4 {[%emt 0:00:43]} Kf6 {[%emt 0:00:38]} 36. h4 {[%emt 0:00:55]} Ke5 {[%emt 0:00:42]} 37. Ke3 {[%emt 0:00:30]} Rc7 {[%emt 0:00:28]} 38. Ne2 {[%emt 0:01:20]} bxc4 {[%emt 0:00:40]} 39. bxc4 {[%emt 0:00:30]} Rb7 {[%emt 0:00:32]} 40. Nf4 {[%emt 0:00:00]} Rb3+ {[%emt 0:00:00]} 41. Nd3+ {[%emt 0:01:28]} Kf5 {[%emt 0:03:18]} 42. Rf4+ {[%emt 0:00:45]} Ke6 {[%emt 0:00:04]} 43. Kd4 {[%emt 0:01:11]} Ke7 {[%emt 0:01:10]} 44. Rf2 {[%emt 0:01:02]} Bh3 {[%emt 0:01:52]} 45. Ne5 {[%emt 0:03:35]} Bf5 {[%emt 0:01:23]} 46. Nc6+ {[%emt 0:01:02]} Kd6 {[%emt 0:00:25]} 47. Ne5 {[%emt 0:00:25]} a4 {[%emt 0:02:59]} 48. c5+ {[%emt 0:01:11]} Kc7 {[%emt 0:00:27]} 49. Kd5 {[%emt 0:02:35]} a3 {[%emt 0:06:26]} 50. bxa3 {[%emt 0:00:18]} Rxa3 {[%emt 0:00:02]} 51. Rf4 {[%emt 0:03:04]} Ra1 {[%emt 0:02:30]} 52. Nf3 {[%emt 0:01:31]} Rf1 {[%emt 0:01:33]} 53. Ke5 {[%emt 0:00:07]} Rc1 {[%emt 0:00:06]} 54. Kd5 {[%emt 0:02:26]} Rf1 {[%emt 0:00:04]} 55. Ke5 {[%emt 0:00:33]} Rc1 {[%emt 0:17:18]} 1/2-1/2